[Event "Titled Tuesday Blitz August 31 2021"]
[White "Mokshanov, Alexey"]
[Black "Chen, Max"]
[WhiteFideId "24121657"]
[BlackFideId "2622440"]
[WhiteElo "2262"]
[BlackElo "2472"]
[Result "1-0"]
[Round "06"]
[TimeControl "180+1"]
[Date "2021.08.31"]
[WhiteClock "0:01:50"]
[BlackClock "0:01:06"]

1. e4 {[%clk 0:02:54]}  c5 {[%clk 0:02:49]} 2. Nf3 {[%clk 0:02:54]}  d6 {[%clk 0:02:47]} 3. Bb5+ {[%clk 0:02:53]}  Nd7 {[%clk 0:02:45]} 4. c4 {[%clk 0:02:50]}  a6 {[%clk 0:02:41]} 5. Ba4 {[%clk 0:02:50]}  Nf6 {[%clk 0:02:40]} 6. O-O {[%clk 0:02:50]}  Nxe4 {[%clk 0:02:35]} 7. Re1 {[%clk 0:02:50]}  Nf6 {[%clk 0:02:35]} 8. d4 {[%clk 0:02:50]}  e6 {[%clk 0:02:30]} 9. d5 {[%clk 0:02:47]}  b5 {[%clk 0:01:48]} 10. dxe6 {[%clk 0:02:39]}  bxa4 {[%clk 0:01:47]} 11. exd7+ {[%clk 0:02:36]}  Kxd7 {[%clk 0:01:47]} 12. Ne5+ {[%clk 0:02:37]}  Kc7 {[%clk 0:01:44]} 13. Nxf7 {[%clk 0:02:37]}  Qd7 {[%clk 0:01:44]} 14. Nxh8 {[%clk 0:02:36]}  g6 {[%clk 0:01:39]} 15. Qf3 {[%clk 0:02:25]}  Bg7 {[%clk 0:01:28]} 16. Qxa8 {[%clk 0:02:06]}  Bb7 {[%clk 0:01:27]} 17. Qa7 {[%clk 0:02:06]}  Bxh8 {[%clk 0:01:12]} 18. Nc3 {[%clk 0:01:58]}  Qg4 {[%clk 0:01:06]} 19. Re7+ {[%clk 0:01:50]} 1-0


[Site "https://www.chess.com"]

[Event "Titled Tuesday Blitz August 31 2021"]
[White "Molina, Roberto Junio Brito"]
[Black "Valle Maytin, Luis Enrique"]
[WhiteFideId "2109450"]
[BlackFideId "3503666"]
[WhiteElo "2402"]
[BlackElo "2235"]
[Result "1-0"]
[Round "06"]
[TimeControl "180+1"]
[Date "2021.08.31"]
[WhiteClock "0:00:10"]
[BlackClock "0:00:02"]

1. d4 {[%clk 0:03:00]}  Nf6 {[%clk 0:02:59]} 2. c4 {[%clk 0:03:00]}  g6 {[%clk 0:02:59]} 3. Nc3 {[%clk 0:03:00]}  Bg7 {[%clk 0:02:58]} 4. e4 {[%clk 0:02:59]}  d6 {[%clk 0:02:59]} 5. Nf3 {[%clk 0:02:59]}  O-O {[%clk 0:02:58]} 6. Be2 {[%clk 0:02:59]}  Nc6 {[%clk 0:02:51]} 7. d5 {[%clk 0:02:59]}  Nb8 {[%clk 0:02:49]} 8. O-O {[%clk 0:02:59]}  e5 {[%clk 0:02:43]} 9. b4 {[%clk 0:02:50]}  a5 {[%clk 0:02:40]} 10. bxa5 {[%clk 0:02:50]}  Rxa5 {[%clk 0:02:37]} 11. Nd2 {[%clk 0:02:49]}  b6 {[%clk 0:02:34]} 12. Nb3 {[%clk 0:02:49]}  Ra8 {[%clk 0:02:32]} 13. a4 {[%clk 0:02:48]}  Nbd7 {[%clk 0:02:12]} 14. a5 {[%clk 0:02:44]}  bxa5 {[%clk 0:01:57]} 15. Nxa5 {[%clk 0:02:28]}  Nb6 {[%clk 0:01:34]} 16. Be3 {[%clk 0:02:21]}  Bd7 {[%clk 0:01:28]} 17. c5 {[%clk 0:02:17]}  dxc5 {[%clk 0:01:18]} 18. Bxc5 {[%clk 0:02:17]}  Re8 {[%clk 0:01:18]} 19. Qc2 {[%clk 0:02:09]}  Bf8 {[%clk 0:01:02]} 20. Nb7 {[%clk 0:01:58]}  Qc8 {[%clk 0:00:51]} 21. Bxf8 {[%clk 0:01:57]}  Kxf8 {[%clk 0:00:49]} 22. Nc5 {[%clk 0:01:57]}  Qd8 {[%clk 0:00:30]} 23. Bb5 {[%clk 0:01:40]}  Bxb5 {[%clk 0:00:22]} 24. Nxb5 {[%clk 0:01:40]}  Qe7 {[%clk 0:00:20]} 25. Nxc7 {[%clk 0:01:09]}  Rxa1 {[%clk 0:00:17]} 26. Rxa1 {[%clk 0:01:08]}  Rc8 {[%clk 0:00:17]} 27. N5a6 {[%clk 0:01:02]}  Ne8 {[%clk 0:00:14]} 28. Qb3 {[%clk 0:00:43]}  Nxc7 {[%clk 0:00:06]} 29. Qxb6 {[%clk 0:00:42]}  Nxa6 {[%clk 0:00:06]} 30. Qxa6 {[%clk 0:00:42]}  Qc7 {[%clk 0:00:04]} 31. g3 {[%clk 0:00:40]}  Qc5 {[%clk 0:00:03]} 32. Qf6 {[%clk 0:00:31]}  Re8 {[%clk 0:00:03]} 33. Ra6 {[%clk 0:00:21]}  Qc1+ {[%clk 0:00:02]} 34. Kg2 {[%clk 0:00:21]}  Kg8 {[%clk 0:00:02]} 35. Rc6 {[%clk 0:00:19]}  Qb2 {[%clk 0:00:01]} 36. Rc7 {[%clk 0:00:17]}  Rf8 {[%clk 0:00:01]} 37. Rc4 {[%clk 0:00:12]}  Qd2 {[%clk 0:00:01]} 38. Qf3 {[%clk 0:00:12]}  Qd3 {[%clk 0:00:01]} 39. Qxd3 {[%clk 0:00:12]}  Rd8 {[%clk 0:00:01]} 40. Qc3 {[%clk 0:00:11]}  Ra8 {[%clk 0:00:02]} 41. Qxe5 {[%clk 0:00:11]}  f6 {[%clk 0:00:01]} 42. Qxf6 {[%clk 0:00:11]}  Rf8 {[%clk 0:00:02]} 43. Qxf8+ {[%clk 0:00:10]}  Kxf8 {[%clk 0:00:02]} 44. Rc7 {[%clk 0:00:10]} 1-0


[Site "https://www.chess.com"]

[Event "Titled Tuesday Blitz August 31 2021"]
[White "Moroni, Luca Jr"]
[Black "Shahade, Gregory"]
[WhiteFideId "865834"]
[BlackFideId "2009064"]
[WhiteElo "2491"]
[BlackElo "2665"]
[Result "1/2-1/2"]
[Round "06"]
[TimeControl "180+1"]
[Date "2021.08.31"]
[WhiteClock "0:00:05"]
[BlackClock "0:00:07"]

1. d4 {[%clk 0:03:00]}  Nf6 {[%clk 0:02:59]} 2. c4 {[%clk 0:03:01]}  g6 {[%clk 0:02:58]} 3. Nc3 {[%clk 0:03:01]}  d5 {[%clk 0:02:58]} 4. cxd5 {[%clk 0:03:02]}  Nxd5 {[%clk 0:02:59]} 5. e4 {[%clk 0:03:03]}  Nxc3 {[%clk 0:02:59]} 6. bxc3 {[%clk 0:03:03]}  Bg7 {[%clk 0:02:59]} 7. Bb5+ {[%clk 0:03:04]}  c6 {[%clk 0:02:57]} 8. Ba4 {[%clk 0:03:04]}  b5 {[%clk 0:02:56]} 9. Bb3 {[%clk 0:03:04]}  O-O {[%clk 0:02:56]} 10. Nf3 {[%clk 0:03:02]}  a5 {[%clk 0:02:56]} 11. a3 {[%clk 0:02:46]}  a4 {[%clk 0:02:47]} 12. Ba2 {[%clk 0:02:46]}  c5 {[%clk 0:02:44]} 13. O-O {[%clk 0:02:45]}  Bg4 {[%clk 0:02:38]} 14. Be3 {[%clk 0:02:42]}  Nc6 {[%clk 0:02:36]} 15. Bd5 {[%clk 0:02:27]}  Qc7 {[%clk 0:02:25]} 16. Rb1 {[%clk 0:02:08]}  e6 {[%clk 0:02:16]} 17. Bxc6 {[%clk 0:01:51]}  Qxc6 {[%clk 0:02:17]} 18. h3 {[%clk 0:01:47]}  Bxf3 {[%clk 0:02:14]} 19. Qxf3 {[%clk 0:01:48]}  Rfd8 {[%clk 0:01:52]} 20. Rfd1 {[%clk 0:01:45]}  cxd4 {[%clk 0:01:20]} 21. cxd4 {[%clk 0:01:40]}  Qc3 {[%clk 0:01:17]} 22. d5 {[%clk 0:01:34]}  exd5 {[%clk 0:01:12]} 23. exd5 {[%clk 0:01:34]}  Qxa3 {[%clk 0:01:12]} 24. Rxb5 {[%clk 0:01:25]}  Qd6 {[%clk 0:01:09]} 25. Rb7 {[%clk 0:01:16]}  Qf6 {[%clk 0:01:03]} 26. Qe4 {[%clk 0:01:03]}  Qe5 {[%clk 0:00:42]} 27. Qc4 {[%clk 0:00:56]}  Qc3 {[%clk 0:00:27]} 28. Qf4 {[%clk 0:00:47]}  Qf6 {[%clk 0:00:27]} 29. Qc7 {[%clk 0:00:36]}  Rdc8 {[%clk 0:00:19]} 30. Qd7 {[%clk 0:00:35]}  Rd8 {[%clk 0:00:19]} 31. Qc7 {[%clk 0:00:21]}  Qf5 {[%clk 0:00:20]} 32. d6 {[%clk 0:00:16]}  a3 {[%clk 0:00:19]} 33. Ra7 {[%clk 0:00:16]}  a2 {[%clk 0:00:18]} 34. Rxa2 {[%clk 0:00:12]}  Rac8 {[%clk 0:00:13]} 35. Qb7 {[%clk 0:00:12]}  Bf8 {[%clk 0:00:12]} 36. Rad2 {[%clk 0:00:11]}  Rb8 {[%clk 0:00:11]} 37. Qd5 {[%clk 0:00:10]}  Qxd5 {[%clk 0:00:10]} 38. Rxd5 {[%clk 0:00:11]}  Rd7 {[%clk 0:00:10]} 39. Bg5 {[%clk 0:00:09]}  f5 {[%clk 0:00:09]} 40. Bf4 {[%clk 0:00:08]}  Kf7 {[%clk 0:00:09]} 41. R5d2 {[%clk 0:00:09]}  Rbd8 {[%clk 0:00:09]} 42. g3 {[%clk 0:00:09]}  Ke6 {[%clk 0:00:09]} 43. Re2+ {[%clk 0:00:09]}  Kf7 {[%clk 0:00:09]} 44. Red2 {[%clk 0:00:07]}  h6 {[%clk 0:00:05]} 45. h4 {[%clk 0:00:05]}  Ke6 {[%clk 0:00:05]} 46. Kg2 {[%clk 0:00:06]}  Kf6 {[%clk 0:00:05]} 47. Rd5 {[%clk 0:00:03]}  g5 {[%clk 0:00:05]} 48. hxg5+ {[%clk 0:00:03]}  hxg5 {[%clk 0:00:06]} 49. Bc1 {[%clk 0:00:04]}  Rxd6 {[%clk 0:00:06]} 50. Rxd6+ {[%clk 0:00:04]}  Rxd6 {[%clk 0:00:06]} 51. Bb2+ {[%clk 0:00:04]}  Kg6 {[%clk 0:00:05]} 52. Rxd6+ {[%clk 0:00:04]}  Bxd6 {[%clk 0:00:06]} 53. f3 {[%clk 0:00:05]}  g4 {[%clk 0:00:06]} 54. fxg4 {[%clk 0:00:06]}  fxg4 {[%clk 0:00:06]} 55. Bc1 {[%clk 0:00:06]}  Bxg3 {[%clk 0:00:06]} 56. Kxg3 {[%clk 0:00:06]}  Kf5 {[%clk 0:00:07]} 57. Ba3 {[%clk 0:00:04]}  Ke4 {[%clk 0:00:07]} 58. Kxg4 {[%clk 0:00:05]} 1/2-1/2


[Site "https://www.chess.com"]

[Event "Titled Tuesday Blitz August 31 2021"]
[White "Nasuta, Grzegorz"]
[Black "Kuzubov, Yuriy"]
[WhiteFideId "1141686"]
[BlackFideId "14112906"]
[WhiteElo "2320"]
[BlackElo "2564"]
[Result "1/2-1/2"]
[Round "06"]
[TimeControl "180+1"]
[Date "2021.08.31"]
[WhiteClock "0:00:03"]
[BlackClock "0:00:17"]

1. e4 {[%clk 0:03:00]}  e5 {[%clk 0:03:00]} 2. Nf3 {[%clk 0:03:00]}  Nf6 {[%clk 0:03:01]} 3. Nc3 {[%clk 0:02:58]}  Nc6 {[%clk 0:03:00]} 4. Bb5 {[%clk 0:02:58]}  Nd4 {[%clk 0:02:52]} 5. Bc4 {[%clk 0:02:58]}  Nxf3+ {[%clk 0:02:51]} 6. Qxf3 {[%clk 0:02:58]}  d6 {[%clk 0:02:49]} 7. d3 {[%clk 0:02:53]}  c6 {[%clk 0:02:48]} 8. h3 {[%clk 0:02:46]}  Be7 {[%clk 0:02:47]} 9. Be3 {[%clk 0:02:43]}  O-O {[%clk 0:02:43]} 10. O-O {[%clk 0:02:34]}  Be6 {[%clk 0:02:38]} 11. Bxe6 {[%clk 0:02:19]}  fxe6 {[%clk 0:02:39]} 12. Qe2 {[%clk 0:02:19]}  Qe8 {[%clk 0:02:37]} 13. f4 {[%clk 0:02:16]}  exf4 {[%clk 0:02:34]} 14. Rxf4 {[%clk 0:02:03]}  Nd7 {[%clk 0:02:34]} 15. Rxf8+ {[%clk 0:02:02]}  Nxf8 {[%clk 0:02:34]} 16. Rf1 {[%clk 0:02:02]}  e5 {[%clk 0:02:31]} 17. a4 {[%clk 0:02:01]}  Ne6 {[%clk 0:02:28]} 18. Qg4 {[%clk 0:02:01]}  Qd7 {[%clk 0:02:22]} 19. Ne2 {[%clk 0:01:53]}  Nc5 {[%clk 0:02:17]} 20. Bxc5 {[%clk 0:01:29]}  Qxg4 {[%clk 0:02:17]} 21. hxg4 {[%clk 0:01:30]}  dxc5 {[%clk 0:02:16]} 22. Rf5 {[%clk 0:01:27]}  Bd6 {[%clk 0:02:15]} 23. Nc3 {[%clk 0:01:27]}  g6 {[%clk 0:02:09]} 24. Rf6 {[%clk 0:01:27]}  Be7 {[%clk 0:02:02]} 25. Rf1 {[%clk 0:01:10]}  Rd8 {[%clk 0:01:58]} 26. b3 {[%clk 0:01:07]}  b6 {[%clk 0:01:43]} 27. Kf2 {[%clk 0:01:05]}  a6 {[%clk 0:01:43]} 28. Ke2 {[%clk 0:01:03]}  Kg7 {[%clk 0:01:39]} 29. Nd1 {[%clk 0:00:45]}  Rf8 {[%clk 0:01:31]} 30. Rxf8 {[%clk 0:00:35]}  Bxf8 {[%clk 0:01:30]} 31. Ne3 {[%clk 0:00:36]}  b5 {[%clk 0:01:27]} 32. g5 {[%clk 0:00:06]}  Kf7 {[%clk 0:01:26]} 33. Ng4 {[%clk 0:00:06]}  Ke6 {[%clk 0:01:26]} 34. Nh2 {[%clk 0:00:04]}  Kd6 {[%clk 0:00:58]} 35. Nf3 {[%clk 0:00:04]}  Be7 {[%clk 0:00:58]} 36. c4 {[%clk 0:00:04]}  bxa4 {[%clk 0:00:54]} 37. bxa4 {[%clk 0:00:04]}  Bd8 {[%clk 0:00:55]} 38. Kd2 {[%clk 0:00:03]}  Ba5+ {[%clk 0:00:53]} 39. Kc2 {[%clk 0:00:04]}  Ke6 {[%clk 0:00:52]} 40. Kb3 {[%clk 0:00:03]}  Bc7 {[%clk 0:00:52]} 41. Kc2 {[%clk 0:00:03]}  Kf7 {[%clk 0:00:51]} 42. Kb3 {[%clk 0:00:03]}  Kg7 {[%clk 0:00:51]} 43. g4 {[%clk 0:00:03]}  h6 {[%clk 0:00:45]} 44. gxh6+ {[%clk 0:00:04]}  Kxh6 {[%clk 0:00:45]} 45. Kc2 {[%clk 0:00:03]}  Bb8 {[%clk 0:00:45]} 46. Kb3 {[%clk 0:00:03]}  Bc7 {[%clk 0:00:43]} 47. Kc2 {[%clk 0:00:03]}  Kg7 {[%clk 0:00:43]} 48. Kd2 {[%clk 0:00:03]}  Kf6 {[%clk 0:00:43]} 49. Kc2 {[%clk 0:00:04]}  Ba5 {[%clk 0:00:42]} 50. Kb3 {[%clk 0:00:04]}  Bb4 {[%clk 0:00:41]} 51. Kc2 {[%clk 0:00:05]}  Ba3 {[%clk 0:00:39]} 52. Kb3 {[%clk 0:00:05]}  Bc1 {[%clk 0:00:39]} 53. Kc2 {[%clk 0:00:05]}  Be3 {[%clk 0:00:39]} 54. Kb3 {[%clk 0:00:06]}  Ke6 {[%clk 0:00:37]} 55. Kc2 {[%clk 0:00:06]}  Bf4 {[%clk 0:00:37]} 56. Kb3 {[%clk 0:00:06]}  Kd6 {[%clk 0:00:37]} 57. Kc2 {[%clk 0:00:07]}  Kc7 {[%clk 0:00:37]} 58. Nh4 {[%clk 0:00:06]}  g5 {[%clk 0:00:36]} 59. Nf5 {[%clk 0:00:05]}  Kb6 {[%clk 0:00:36]} 60. Kb3 {[%clk 0:00:05]}  Kc7 {[%clk 0:00:34]} 61. Ng7 {[%clk 0:00:02]}  Kd7 {[%clk 0:00:29]} 62. Kc2 {[%clk 0:00:02]}  Ke7 {[%clk 0:00:22]} 63. Nf5+ {[%clk 0:00:01]}  Kd7 {[%clk 0:00:22]} 64. Kb3 {[%clk 0:00:01]}  Kc8 {[%clk 0:00:22]} 65. Kc2 {[%clk 0:00:02]}  Kb7 {[%clk 0:00:22]} 66. Kb3 {[%clk 0:00:02]}  Kb6 {[%clk 0:00:21]} 67. Nd6 {[%clk 0:00:02]}  Ka5 {[%clk 0:00:20]} 68. Nb7+ {[%clk 0:00:02]}  Kb6 {[%clk 0:00:20]} 69. Nd6 {[%clk 0:00:02]}  Bg3 {[%clk 0:00:20]} 70. Nf5 {[%clk 0:00:02]}  Bh2 {[%clk 0:00:20]} 71. Ng7 {[%clk 0:00:02]}  Bf4 {[%clk 0:00:20]} 72. Ne6 {[%clk 0:00:03]}  Be3 {[%clk 0:00:19]} 73. Kc2 {[%clk 0:00:02]}  Ka5 {[%clk 0:00:19]} 74. Kb3 {[%clk 0:00:03]}  Kb6 {[%clk 0:00:17]} 75. Ka2 {[%clk 0:00:03]}  Bf4 {[%clk 0:00:17]} 76. Ka3 {[%clk 0:00:02]}  Bc1+ {[%clk 0:00:17]} 77. Kb3 {[%clk 0:00:03]}  Be3 {[%clk 0:00:17]} 1/2-1/2


[Site "https://www.chess.com"]

[Event "Titled Tuesday Blitz August 31 2021"]
[White "Nefedov, Sergey"]
[Black "Costachi, Mihnea"]
[WhiteFideId "24113417"]
[BlackFideId "1217518"]
[WhiteElo "2380"]
[BlackElo "2482"]
[Result "0-1"]
[Round "06"]
[TimeControl "180+1"]
[Date "2021.08.31"]
[WhiteClock "0:00:22"]
[BlackClock "0:01:58"]

1. d4 {[%clk 0:02:59]}  Nf6 {[%clk 0:02:59]} 2. Nf3 {[%clk 0:02:57]}  g6 {[%clk 0:02:59]} 3. c4 {[%clk 0:02:57]}  Bg7 {[%clk 0:03:00]} 4. Nc3 {[%clk 0:02:57]}  O-O {[%clk 0:03:01]} 5. Bg5 {[%clk 0:02:56]}  d6 {[%clk 0:03:02]} 6. Qd2 {[%clk 0:02:56]}  c5 {[%clk 0:03:01]} 7. d5 {[%clk 0:02:56]}  a6 {[%clk 0:03:02]} 8. Bh6 {[%clk 0:02:56]}  b5 {[%clk 0:03:02]} 9. cxb5 {[%clk 0:02:56]}  axb5 {[%clk 0:03:03]} 10. Bxg7 {[%clk 0:02:56]}  Kxg7 {[%clk 0:03:03]} 11. Nxb5 {[%clk 0:02:56]}  Ba6 {[%clk 0:03:00]} 12. Nc3 {[%clk 0:02:56]}  Nbd7 {[%clk 0:03:00]} 13. e4 {[%clk 0:02:54]}  Bxf1 {[%clk 0:02:59]} 14. Kxf1 {[%clk 0:02:55]}  Qa5 {[%clk 0:02:58]} 15. g3 {[%clk 0:02:54]}  Qb4 {[%clk 0:02:55]} 16. Re1 {[%clk 0:02:48]}  Rfb8 {[%clk 0:02:54]} 17. Re2 {[%clk 0:02:45]}  Nb6 {[%clk 0:02:52]} 18. e5 {[%clk 0:02:34]}  Ng4 {[%clk 0:02:41]} 19. Qf4 {[%clk 0:02:26]}  Qxf4 {[%clk 0:02:34]} 20. gxf4 {[%clk 0:02:26]}  Na4 {[%clk 0:02:32]} 21. Nd1 {[%clk 0:02:05]}  Rb4 {[%clk 0:02:28]} 22. b3 {[%clk 0:02:04]}  Rxf4 {[%clk 0:02:26]} 23. exd6 {[%clk 0:01:51]}  exd6 {[%clk 0:02:22]} 24. Nd2 {[%clk 0:01:47]}  Nb6 {[%clk 0:02:19]} 25. h3 {[%clk 0:01:44]}  Ne5 {[%clk 0:02:18]} 26. Ne3 {[%clk 0:01:42]}  Rxa2 {[%clk 0:02:14]} 27. Kg2 {[%clk 0:01:16]}  Rd4 {[%clk 0:02:12]} 28. Rd1 {[%clk 0:01:13]}  Nxd5 {[%clk 0:02:07]} 29. Nxd5 {[%clk 0:01:06]}  Rxd5 {[%clk 0:02:08]} 30. f4 {[%clk 0:01:01]}  Nd3 {[%clk 0:02:07]} 31. Kf3 {[%clk 0:00:58]}  Nb4 {[%clk 0:02:03]} 32. Rf2 {[%clk 0:00:42]}  Rd3+ {[%clk 0:02:02]} 33. Ke4 {[%clk 0:00:41]}  Rxh3 {[%clk 0:02:02]} 34. f5 {[%clk 0:00:41]}  f6 {[%clk 0:02:01]} 35. Rg1 {[%clk 0:00:33]}  g5 {[%clk 0:02:00]} 36. Rf3 {[%clk 0:00:25]}  d5+ {[%clk 0:01:56]} 37. Ke3 {[%clk 0:00:25]}  Rxd2 {[%clk 0:01:57]} 38. Rxh3 {[%clk 0:00:22]}  Rd3+ {[%clk 0:01:57]} 39. Ke2 {[%clk 0:00:22]}  Rxh3 {[%clk 0:01:58]} 0-1


[Site "https://www.chess.com"]

[Event "Titled Tuesday Blitz August 31 2021"]
[White "Ovchinnikov, Vsevolod"]
[Black "Samsonkin, Artiom"]
[WhiteFideId "24176842"]
[BlackFideId "13503111"]
[WhiteElo "2376"]
[BlackElo "2513"]
[Result "0-1"]
[Round "06"]
[TimeControl "180+1"]
[Date "2021.08.31"]
[WhiteClock "0:00:01"]
[BlackClock "0:00:12"]

1. d4 {[%clk 0:03:00]}  Nf6 {[%clk 0:02:58]} 2. c4 {[%clk 0:03:01]}  e6 {[%clk 0:02:59]} 3. g3 {[%clk 0:03:01]}  Bb4+ {[%clk 0:02:58]} 4. Bd2 {[%clk 0:03:01]}  Qe7 {[%clk 0:02:58]} 5. Bg2 {[%clk 0:03:01]}  Nc6 {[%clk 0:02:55]} 6. d5 {[%clk 0:02:58]}  Ne5 {[%clk 0:02:49]} 7. Qb3 {[%clk 0:02:53]}  a5 {[%clk 0:02:42]} 8. a3 {[%clk 0:02:47]}  Bxd2+ {[%clk 0:02:26]} 9. Nxd2 {[%clk 0:02:48]}  O-O {[%clk 0:02:22]} 10. Ngf3 {[%clk 0:02:38]}  exd5 {[%clk 0:02:22]} 11. cxd5 {[%clk 0:02:37]}  Re8 {[%clk 0:02:13]} 12. Nxe5 {[%clk 0:01:44]}  Qxe5 {[%clk 0:01:56]} 13. e3 {[%clk 0:01:07]}  a4 {[%clk 0:01:43]} 14. Qa2 {[%clk 0:01:03]}  b6 {[%clk 0:01:31]} 15. Nc4 {[%clk 0:00:59]}  Qf5 {[%clk 0:01:19]} 16. Qb1 {[%clk 0:00:46]}  Qh5 {[%clk 0:01:14]} 17. Qd1 {[%clk 0:00:44]}  Qh6 {[%clk 0:01:01]} 18. Qd4 {[%clk 0:00:31]}  d6 {[%clk 0:00:59]} 19. h3 {[%clk 0:00:30]}  Bf5 {[%clk 0:00:52]} 20. g4 {[%clk 0:00:28]}  Be4 {[%clk 0:00:49]} 21. f3 {[%clk 0:00:17]}  Bxd5 {[%clk 0:00:48]} 22. e4 {[%clk 0:00:14]}  Bxc4 {[%clk 0:00:40]} 23. Qxc4 {[%clk 0:00:15]}  d5 {[%clk 0:00:41]} 24. Qe2 {[%clk 0:00:15]}  dxe4 {[%clk 0:00:35]} 25. fxe4 {[%clk 0:00:16]}  Nxe4 {[%clk 0:00:35]} 26. Bxe4 {[%clk 0:00:14]}  Qf4 {[%clk 0:00:27]} 27. Bxa8 {[%clk 0:00:11]}  Qg3+ {[%clk 0:00:24]} 28. Kd2 {[%clk 0:00:09]}  Rxe2+ {[%clk 0:00:25]} 29. Kxe2 {[%clk 0:00:09]}  Qe5+ {[%clk 0:00:25]} 30. Kf2 {[%clk 0:00:09]}  Qxb2+ {[%clk 0:00:26]} 31. Kg3 {[%clk 0:00:09]}  Qc3+ {[%clk 0:00:21]} 32. Bf3 {[%clk 0:00:09]}  h5 {[%clk 0:00:20]} 33. gxh5 {[%clk 0:00:08]}  Qe5+ {[%clk 0:00:21]} 34. Kg2 {[%clk 0:00:09]}  c5 {[%clk 0:00:21]} 35. Rhe1 {[%clk 0:00:08]}  Qb2+ {[%clk 0:00:20]} 36. Kg3 {[%clk 0:00:08]}  Kh7 {[%clk 0:00:18]} 37. Be4+ {[%clk 0:00:07]}  Kh6 {[%clk 0:00:18]} 38. Bf3 {[%clk 0:00:07]}  Qd4 {[%clk 0:00:18]} 39. Rad1 {[%clk 0:00:06]}  Qc3 {[%clk 0:00:18]} 40. Ra1 {[%clk 0:00:05]}  b5 {[%clk 0:00:17]} 41. Kf2 {[%clk 0:00:05]}  b4 {[%clk 0:00:16]} 42. axb4 {[%clk 0:00:05]}  cxb4 {[%clk 0:00:17]} 43. Rec1 {[%clk 0:00:03]}  Qd2+ {[%clk 0:00:17]} 44. Be2 {[%clk 0:00:03]}  b3 {[%clk 0:00:16]} 45. Rcb1 {[%clk 0:00:04]}  Qd4+ {[%clk 0:00:13]} 46. Kf1 {[%clk 0:00:03]}  Qf4+ {[%clk 0:00:13]} 47. Ke1 {[%clk 0:00:03]}  Qg3+ {[%clk 0:00:13]} 48. Kd2 {[%clk 0:00:04]}  Qf4+ {[%clk 0:00:13]} 49. Ke1 {[%clk 0:00:04]}  Qe4 {[%clk 0:00:12]} 50. Kd1 {[%clk 0:00:03]}  Qd4+ {[%clk 0:00:11]} 51. Ke1 {[%clk 0:00:04]}  a3 {[%clk 0:00:11]} 52. Rxa3 {[%clk 0:00:02]}  Qb4+ {[%clk 0:00:12]} 53. Kf1 {[%clk 0:00:02]}  Qxa3 {[%clk 0:00:12]} 54. Bd1 {[%clk 0:00:03]}  b2 {[%clk 0:00:13]} 55. Bc2 {[%clk 0:00:02]}  Qf3+ {[%clk 0:00:13]} 56. Ke1 {[%clk 0:00:03]}  Qe3+ {[%clk 0:00:13]} 57. Kd1 {[%clk 0:00:04]}  Qg1+ {[%clk 0:00:12]} 58. Kd2 {[%clk 0:00:04]}  Qg2+ {[%clk 0:00:13]} 59. Kc3 {[%clk 0:00:04]}  Qxh3+ {[%clk 0:00:13]} 60. Bd3 {[%clk 0:00:05]}  Qh2 {[%clk 0:00:12]} 61. Rxb2 {[%clk 0:00:05]}  Qe5+ {[%clk 0:00:13]} 62. Kc2 {[%clk 0:00:05]}  f5 {[%clk 0:00:13]} 63. Rb5 {[%clk 0:00:05]}  Qc7+ {[%clk 0:00:12]} 64. Kd1 {[%clk 0:00:05]}  f4 {[%clk 0:00:12]} 65. Ke2 {[%clk 0:00:05]}  Qe7+ {[%clk 0:00:12]} 66. Kd1 {[%clk 0:00:04]}  Qe3 {[%clk 0:00:12]} 67. Kc2 {[%clk 0:00:03]}  f3 {[%clk 0:00:12]} 68. Rf5 {[%clk 0:00:03]}  f2 {[%clk 0:00:12]} 69. Kc3 {[%clk 0:00:03]}  Qe1+ {[%clk 0:00:12]} 70. Kd4 {[%clk 0:00:03]}  Qd2 {[%clk 0:00:11]} 71. Kc4 {[%clk 0:00:03]}  Qc1+ {[%clk 0:00:09]} 72. Kd4 {[%clk 0:00:03]}  Qg1 {[%clk 0:00:10]} 73. Kc4 {[%clk 0:00:03]}  g5 {[%clk 0:00:11]} 74. hxg6 {[%clk 0:00:03]}  Qg4+ {[%clk 0:00:11]} 75. Kc3 {[%clk 0:00:01]}  f1=Q {[%clk 0:00:12]} 0-1


[Site "https://www.chess.com"]